bitfinex-derivatives/quotes_BTCF0:USTF0_20241208
["timestamp","ask_amount","ask_price","bid_price","bid_amount"]
[1733668606161,0.077595,100170.0,100160.0,0.08051839]
[1733668606753,0.93535618,100180.0,100160.0,0.18534587]
[1733668606754,0.83033775,100180.0,100160.0,0.18534587]
[1733668606956,0.83033775,100180.0,100170.0,0.044894]
[1733668608067,0.83433775,100180.0,100170.0,0.04801403]
[1733668608762,0.83433775,100180.0,100170.0,0.05300559]
[1733668608952,0.83433775,100180.0,100170.0,0.15283093]
[1733668608953,0.410691,100180.0,100170.0,0.15283093]
[1733668609157,0.410691,100180.0,100170.0,0.18363093]
[1733668609568,0.409691,100180.0,100170.0,0.18363093]
[1733668609769,0.007,100180.0,100170.0,0.18363093]
[1733668610262,0.007,100180.0,100170.0,0.19608059]
[1733668610763,0.007,100180.0,100170.0,0.19608058]
[1733668611065,0.007,100180.0,100170.0,0.97491043]
[1733668611456,0.007,100180.0,100170.0,0.97490742]
[1733668611666,0.007,100180.0,100170.0,1.42526017]
[1733668612364,0.12090675,100200.0,100190.0,0.044885]
[1733668612563,0.12090675,100200.0,100190.0,0.05299663]
[1733668613160,0.0317,100200.0,100190.0,0.05299663]
[1733668613565,0.0367,100200.0,100190.0,0.05399663]
[1733668613754,0.0367,100200.0,100190.0,0.153802]
[1733668614170,0.0367,100200.0,100190.0,0.1488104]
[1733668614376,0.0377,100200.0,100190.0,0.1498104]
[1733668614673,0.0377,100200.0,100190.0,0.15480051]
[1733668615260,0.0377,100200.0,100190.0,0.1498104]
[1733668615865,0.0377,100200.0,100190.0,0.15480054]
[1733668616368,0.0377,100200.0,100190.0,0.1498104]
[1733668618056,0.0377,100200.0,100190.0,0.15956241]
[1733668618255,0.44338,100200.0,100190.0,0.05000503]
[1733668620175,0.47548,100200.0,100190.0,0.046885]
[1733668621169,0.48548,100200.0,100190.0,0.046885]
[1733668624666,0.47548,100200.0,100190.0,0.046885]
[1733668625057,0.47548,100200.0,100190.0,0.05000406]
[1733668625665,0.47548,100200.0,100190.0,0.05000398]
[1733668626971,0.3985,100200.0,100190.0,0.05000398]
[1733668627173,0.0377,100200.0,100190.0,0.1547995]
[1733668627370,0.0377,100200.0,100190.0,0.16723187]
[1733668628277,0.0377,100200.0,100190.0,0.16623187]
[1733668628278,0.0327,100200.0,100190.0,0.16623187]
[1733668628569,0.0337,100200.0,100190.0,0.16523187]
[1733668630275,0.3945,100200.0,100190.0,0.16523187]
[1733668630572,0.3945,100200.0,100190.0,0.17532887]
[1733668632073,0.3945,100200.0,100190.0,0.35410972]
[1733668634179,0.43938,100200.0,100190.0,0.35410972]
[1733668634375,0.43938,100200.0,100190.0,0.34167735]
[1733668635072,0.52858675,100200.0,100190.0,0.34167735]
[1733668635274,0.52858675,100200.0,100190.0,0.23177498]
[1733668635479,0.64759618,100200.0,100190.0,0.05299413]
[1733668636072,0.43938,100200.0,100190.0,0.23177548]
[1733668636377,0.47168,100200.0,100190.0,0.23177548]
[1733668637178,0.62044179,100200.0,100190.0,0.23177548]
[1733668637578,0.62044179,100200.0,100190.0,0.23177557]
[1733668637979,0.62044179,100200.0,100190.0,0.22366585]
[1733668638173,0.62044179,100200.0,100190.0,0.23177562]
[1733668638379,0.79930255,100200.0,100190.0,0.05299477]
[1733668639077,0.82930255,100200.0,100190.0,0.00810977]
[1733668639274,0.68054076,100200.0,100190.0,0.00810977]
[1733668639877,0.96124076,100200.0,100190.0,0.00810977]
[1733668640589,1.52863894,100200.0,100170.0,0.23367385]
[1733668640877,0.94497817,100180.0,100160.0,0.50642561]
[1733668641083,0.70561389,100170.0,100160.0,0.49642561]
[1733668641377,0.64604842,100170.0,100160.0,0.25757428]
[1733668641577,0.70561389,100170.0,100160.0,0.25757428]
[1733668641783,0.70561389,100170.0,100160.0,0.49642561]
[1733668641784,0.64604909,100170.0,100160.0,0.49642561]
[1733668642080,0.64604909,100170.0,100160.0,0.50542561]
[1733668642385,0.64604909,100170.0,100160.0,0.26657428]
[1733668643075,0.52706247,100170.0,100160.0,0.51042561]
[1733668643282,0.52706247,100170.0,100160.0,0.50342561]
[1733668643480,0.52706247,100170.0,100160.0,0.26457428]
[1733668643987,0.52706247,100170.0,100160.0,0.26307685]
[1733668644489,0.437894,100170.0,100160.0,0.26307685]
[1733668644675,0.437894,100170.0,100160.0,0.25907685]
[1733668644879,0.3608,100170.0,100160.0,0.35891212]
[1733668645073,0.61384509,100180.0,100170.0,0.044894]
[1733668645074,0.13405847,100180.0,100170.0,0.044894]
[1733668645478,0.49485847,100180.0,100170.0,0.22367485]
[1733668645679,0.49485847,100180.0,100170.0,0.044894]
[1733668646281,0.61584509,100180.0,100170.0,0.044894]
[1733668646978,0.044894,100170.0,100160.0,0.22367785]
[1733668647187,0.52631111,100170.0,100160.0,0.044897]
[1733668647482,0.55751111,100170.0,100160.0,0.044897]
[1733668648289,0.55751111,100170.0,100160.0,0.045897]
[1733668648485,0.55751111,100170.0,100160.0,0.047897]
[1733668649886,0.468494,100170.0,100160.0,0.047897]
[1733668650192,0.60893358,100180.0,100160.0,0.14773227]
[1733668650393,0.53483896,100180.0,100170.0,0.044894]
[1733668651993,0.53583896,100180.0,100170.0,0.044894]
[1733668652292,0.53683896,100180.0,100170.0,0.044894]
[1733668652789,0.53683896,100180.0,100170.0,0.04801378]
[1733668653792,0.52680911,100180.0,100170.0,0.04801378]
[1733668655478,0.49670911,100180.0,100170.0,0.04801378]
[1733668655879,0.49670911,100180.0,100170.0,0.05300532]
[1733668658185,0.61569573,100180.0,100170.0,0.05300532]
[1733668659395,0.61569573,100180.0,100170.0,0.08540532]
[1733668660091,0.49670911,100180.0,100170.0,0.08540532]
[1733668660293,0.61569573,100180.0,100170.0,0.08540532]
[1733668660891,0.61569573,100180.0,100170.0,0.09550547]
[1733668661087,0.61569573,100180.0,100170.0,0.08540532]
[1733668661290,0.63569573,100180.0,100170.0,0.05300532]
[1733668661492,0.75971189,100180.0,100170.0,0.05300532]
[1733668662586,0.491992,100180.0,100170.0,0.05300532]
[1733668662790,0.59081155,100180.0,100170.0,0.23178617]
[1733668663184,0.59084527,100180.0,100170.0,0.22367485]
[1733668663784,0.59084527,100180.0,100170.0,0.22866658]
[1733668663992,0.59084527,100180.0,100170.0,0.23178641]
[1733668664296,0.471992,100180.0,100170.0,0.23178641]
[1733668665197,0.59088354,100180.0,100170.0,0.22367485]
[1733668665597,0.471992,100180.0,100170.0,0.22367485]
[1733668665898,0.481992,100180.0,100170.0,0.22367485]
[1733668666400,0.63072527,100180.0,100170.0,0.17878085]
[1733668667004,0.63072527,100180.0,100170.0,0.1868926]
[1733668667292,0.94118117,100180.0,100170.0,0.00811175]
[1733668667502,0.762692,100180.0,100170.0,0.00811203]
[1733668667687,0.762692,100180.0,100170.0,0.00312018]
[1733668668292,1.062692,100180.0,100170.0,0.00312018]
[1733668668597,0.044898,100160.0,100150.0,0.47253418]
[1733668668799,0.61395546,100160.0,100150.0,0.46752658]
[1733668669298,0.67345759,100160.0,100150.0,0.46752658]
[1733668669890,0.67345759,100160.0,100150.0,0.47052658]
[1733668670497,0.67345759,100160.0,100150.0,0.47652678]
[1733668671803,0.70575759,100160.0,100150.0,0.47652678]
[1733668672192,0.55700226,100160.0,100150.0,0.50912678]
[1733668672494,0.28551675,100160.0,100150.0,0.50912678]
[1733668673198,0.55700226,100160.0,100150.0,0.50912678]
[1733668673996,0.70575759,100160.0,100150.0,0.27027545]
[1733668674591,0.55700226,100160.0,100150.0,0.27027545]
[1733668674894,0.70575759,100160.0,100150.0,0.27027545]
[1733668675300,0.55700226,100160.0,100150.0,0.27027545]
[1733668675494,0.55700226,100160.0,100150.0,0.50912678]
[1733668675691,0.55700226,100160.0,100150.0,0.27027545]
[1733668677701,0.55700226,100160.0,100150.0,0.27027525]
[1733668678999,0.55700226,100160.0,100150.0,0.29774573]
[1733668679204,0.61940226,100160.0,100150.0,0.23819574]
[1733668679394,0.510398,100160.0,100150.0,0.23819574]
[1733668679597,0.510398,100160.0,100150.0,0.23320334]
[1733668680100,0.510398,100160.0,100150.0,0.23819589]
[1733668680305,0.6294407,100160.0,100150.0,0.47704722]
[1733668680492,0.6294407,100160.0,100150.0,0.19641427]
[1733668680695,0.65915333,100160.0,100150.0,0.01711293]
[1733668681002,0.83765973,100160.0,100150.0,0.01212038]
[1733668682202,0.65915333,100160.0,100150.0,0.01212038]
[1733668684205,1.01995333,100160.0,100150.0,0.01212038]
[1733668685518,1.30065333,100160.0,100150.0,0.01212038]
[1733668685727,1.30072424,100160.0,100150.0,0.01212038]
[1733668686807,1.47923064,100160.0,100150.0,0.01212038]
[1733668687310,1.30072424,100160.0,100150.0,0.01212038]
[1733668687517,1.47923064,100160.0,100150.0,0.01212038]
[1733668687702,1.47923064,100160.0,100150.0,0.009]
[1733668688602,1.47923064,100160.0,100150.0,0.01212076]
[1733668689207,1.33047531,100160.0,100150.0,0.01212076]
[1733668689413,1.33047531,100160.0,100150.0,0.009]
[1733668690418,1.33047531,100160.0,100150.0,0.01212085]
[1733668690811,1.19851642,100160.0,100150.0,0.01212085]
[1733668691109,1.04977531,100160.0,100150.0,0.01212085]
[1733668691509,1.19852771,100160.0,100150.0,0.01212085]
[1733668691705,1.19852771,100160.0,100150.0,0.009]
[1733668691910,1.16692771,100160.0,100150.0,0.009]
[1733668692112,1.09382771,100160.0,100150.0,0.01212064]
[1733668692313,1.03434298,100160.0,100150.0,0.08922364]
[1733668692517,0.88559058,100160.0,100150.0,0.09421656]
[1733668692713,0.97485789,100160.0,100150.0,0.09421656]
[1733668693216,0.97485789,100160.0,100150.0,0.2735179]
[1733668694816,1.06434298,100160.0,100150.0,0.01711356]
[1733668695011,1.03882131,100160.0,100150.0,0.01711356]
[1733668695217,1.21732771,100160.0,100150.0,0.01711356]
[1733668695829,2.71732771,100160.0,100150.0,0.01212064]
[1733668696117,2.71741125,100160.0,100150.0,0.01212064]
[1733668696420,1.06857531,100160.0,100150.0,0.01212064]
[1733668696720,1.49814797,100160.0,100150.0,0.01212064]
[1733668696915,1.34927531,100160.0,100150.0,0.01212064]
[1733668700622,1.34927531,100160.0,100150.0,0.01212074]
[1733668703224,1.37902308,100160.0,100150.0,0.01212074]
[1733668704521,1.17076891,100160.0,100150.0,0.01212074]
[1733668706620,1.17076891,100160.0,100150.0,0.009]
[1733668706820,1.17076891,100160.0,100150.0,0.01212081]
[1733668709336,1.37902308,100160.0,100150.0,0.01212081]
[1733668709527,1.17076891,100160.0,100150.0,0.01212081]
[1733668710835,0.44916891,100160.0,100150.0,0.01212081]
[1733668711032,1.17076891,100160.0,100150.0,0.01212081]
[1733668711733,1.37902308,100160.0,100150.0,0.01212081]
[1733668712031,1.17076891,100160.0,100150.0,0.01212081]
[1733668712224,1.37902308,100160.0,100150.0,0.01212081]
[1733668712425,1.17076891,100160.0,100150.0,0.01212081]
[1733668713829,1.37902308,100160.0,100150.0,0.01212081]
[1733668714630,1.17076891,100160.0,100150.0,0.01212081]
[1733668715534,1.17076891,100160.0,100150.0,0.009]
[1733668715735,1.17076891,100160.0,100150.0,0.0121208]
[1733668718141,1.37902308,100160.0,100150.0,0.0121208]
[1733668722345,1.17076891,100160.0,100150.0,0.0121208]
[1733668723235,1.37902308,100160.0,100150.0,0.0121208]
[1733668725348,1.61702785,100160.0,100150.0,0.0121208]
[1733668726146,1.61702785,100160.0,100150.0,0.01212079]
[1733668727142,2.90877368,100160.0,100150.0,0.01212079]
[1733668727444,2.90877368,100160.0,100150.0,0.01212082]
[1733668728046,1.61781102,100160.0,100150.0,0.01212082]
[1733668728645,0.044903,100150.0,100140.0,0.21210134]
[1733668728844,0.8049422,100150.0,100140.0,0.17930134]
[1733668729047,0.044907,100140.0,100130.0,0.45145267]
[1733668729244,0.63481718,100140.0,100130.0,0.45145267]
[1733668729547,0.455707,100140.0,100130.0,0.21260134]
[1733668730048,0.73413483,100140.0,100130.0,0.95369739]
[1733668730243,0.73413483,100140.0,100130.0,0.98599739]
[1733668730447,0.55499719,100140.0,100130.0,0.98599739]
[1733668730649,0.55499719,100140.0,100130.0,0.99099064]
[1733668731853,0.73513483,100140.0,100130.0,0.99999064]
[1733668732056,0.73513483,100140.0,100130.0,1.00499064]
[1733668732543,0.37433483,100140.0,100130.0,1.00499064]
[1733668732742,0.73513483,100140.0,100130.0,1.00499064]
[1733668733047,0.55599719,100140.0,100130.0,1.00499064]
[1733668733246,0.73513483,100140.0,100130.0,1.00499064]
[1733668733454,0.67546332,100140.0,100130.0,0.76613931]
[1733668733856,0.55599719,100140.0,100130.0,0.77638485]
[1733668734550,0.67546195,100140.0,100130.0,0.77638485]
[1733668735140,0.67546195,100140.0,100130.0,0.7713916]
[1733668735457,0.67546195,100140.0,100130.0,0.77638492]
[1733668735750,0.55599719,100140.0,100130.0,0.77638492]
[1733668736053,0.67546428,100140.0,100130.0,0.77638492]
[1733668736556,0.55599719,100140.0,100130.0,0.77638492]
[1733668737250,0.67542879,100140.0,100130.0,0.77638492]
[1733668738145,0.67542879,100140.0,100130.0,1.13486004]
[1733668738455,0.67542879,100140.0,100130.0,0.77585488]
[1733668739248,0.67542879,100140.0,100130.0,0.76560934]
[1733668739444,0.73513483,100140.0,100130.0,1.00517881]
[1733668740345,0.60584464,100140.0,100130.0,0.47154289]
[1733668740852,0.75516818,100140.0,100130.0,0.4746639]
[1733668741051,0.63864464,100140.0,100130.0,0.4746639]
[1733668741756,0.63864464,100140.0,100130.0,0.23509443]
[1733668742756,0.459507,100140.0,100130.0,0.02211433]
[1733668743052,0.66854434,100140.0,100130.0,0.02211433]
[1733668743259,0.66854434,100140.0,100130.0,0.01712101]
[1733668744050,0.66854434,100140.0,100130.0,0.01712139]
[1733668744555,0.459507,100140.0,100130.0,0.01712139]
[1733668745262,0.458507,100140.0,100130.0,0.00812139]
[1733668745455,0.63745245,100140.0,100130.0,0.01412139]
[1733668745958,0.63745245,100140.0,100130.0,0.00912139]
[1733668746169,0.67015245,100140.0,100130.0,0.01212139]
[1733668746862,0.491207,100140.0,100130.0,0.01212139]
[1733668747057,0.491207,100140.0,100130.0,0.009]
[1733668747058,0.70024434,100140.0,100130.0,0.009]
[1733668748464,0.70224434,100140.0,100130.0,0.003]
[1733668749365,0.98294434,100140.0,100110.0,0.1896801]
[1733668749567,1.03463657,100120.0,100110.0,0.00811634]
[1733668749762,1.06463657,100120.0,100110.0,0.00811634]
[1733668749963,1.09603657,100120.0,100110.0,0.00811634]
[1733668750172,1.09603657,100120.0,100110.0,0.00312167]
[1733668750564,1.09603657,100120.0,100110.0,0.00612167]
[1733668751072,1.12763657,100120.0,100110.0,0.00612167]
[1733668751366,1.31896305,100120.0,100110.0,0.009]
[1733668751564,1.46778555,100120.0,100110.0,0.009]
[1733668751773,1.43778555,100120.0,100110.0,0.009]
[1733668752073,1.37810323,100120.0,100110.0,0.01212196]
[1733668752371,1.37810323,100120.0,100110.0,0.009]
[1733668752762,1.37810323,100120.0,100110.0,0.005]
[1733668753573,1.37810323,100120.0,100110.0,0.003]
[1733668754269,1.38834521,100120.0,100110.0,0.003]
[1733668756378,1.39834521,100120.0,100110.0,0.003]
[1733668756683,1.27928048,100120.0,100110.0,0.003]
[1733668756874,0.99858048,100120.0,100110.0,0.003]
[1733668758872,0.99858048,100120.0,100110.0,0.00612189]
[1733668759271,0.99858048,100120.0,100110.0,0.003]
[1733668761977,1.17732753,100120.0,100110.0,0.003]
[1733668762573,1.19749496,100120.0,100110.0,0.003]
[1733668763079,1.47819496,100120.0,100110.0,0.003]
[1733668764481,1.41837805,100120.0,100110.0,0.003]
[1733668764983,1.29944791,100120.0,100110.0,0.003]
[1733668765170,1.47819496,100120.0,100110.0,0.003]
[1733668767283,0.044921,100110.0,100100.0,0.1]
[1733668767581,1.11559055,100110.0,100100.0,0.1]
[1733668767982,2.61559055,100110.0,100100.0,0.1]
[1733668768186,1.11559055,100110.0,100100.0,0.1]
[1733668768585,0.96676805,100110.0,100100.0,0.101]
[1733668768785,2.46676805,100110.0,100100.0,0.101]
[1733668769087,2.46676805,100110.0,100100.0,0.103]
[1733668769583,0.96676805,100110.0,100100.0,0.103]
[1733668770380,1.08391371,100110.0,100100.0,0.103]
[1733668770586,0.93516805,100110.0,100100.0,0.103]
[1733668771889,0.65446805,100110.0,100100.0,0.103]
[1733668773584,0.65746805,100110.0,100100.0,0.101]
[1733668774188,0.65846805,100110.0,100100.0,0.1]
[1733668777487,0.68875834,100110.0,100100.0,0.1]
[1733668777687,0.71985834,100110.0,100100.0,0.1]
[1733668777885,1.00055834,100110.0,100100.0,0.1]
[1733668778692,0.791521,100110.0,100100.0,0.1]
[1733668779189,1.00055834,100110.0,100100.0,0.1]
[1733668782688,0.791521,100110.0,100100.0,0.1]
[1733668785289,1.00055834,100110.0,100100.0,0.1]
[1733668785493,0.791521,100110.0,100100.0,0.1]
[1733668786093,1.00055834,100110.0,100100.0,0.1]
[1733668786694,1.00655834,100110.0,100100.0,0.101]
[1733668789988,1.58028311,100110.0,100100.0,0.101]
[1733668790391,1.5803949,100110.0,100100.0,0.101]
[1733668790587,1.37135756,100110.0,100100.0,0.101]
[1733668790788,1.13335279,100110.0,100100.0,0.101]
[1733668791094,1.34239013,100110.0,100100.0,0.101]
[1733668791493,2.84239013,100110.0,100100.0,0.101]
[1733668792699,3.13985578,100110.0,100100.0,0.101]
[1733668792998,2.85915578,100110.0,100100.0,0.101]
[1733668794097,2.56134457,100110.0,100100.0,0.101]
[1733668794990,0.04493,100090.0,100080.0,1.0401]
[1733668795190,0.96541734,100090.0,100080.0,1.03821908]
[1733668796295,0.96541734,100090.0,100080.0,1.21989918]
[1733668797498,0.96541734,100090.0,100080.0,1.22089918]
[1733668797692,0.96541734,100090.0,100080.0,1.04121908]
[1733668799205,0.96541734,100090.0,100080.0,1.01111908]
[1733668799401,0.99661734,100090.0,100080.0,1.01111908]
[1733668799702,0.99661734,100090.0,100080.0,1.00612272]
[1733668799703,2.49661734,100090.0,100080.0,1.00612272]
[1733668799908,0.81773,100090.0,100080.0,1.00612272]
[1733668800403,2.31773,100090.0,100080.0,1.00612272]
[1733668800709,2.49665422,100090.0,100080.0,1.00612272]
[1733668801300,2.50676135,100090.0,100080.0,1.00612272]
[1733668802304,2.50673314,100090.0,100080.0,1.00612272]
[1733668802495,2.32783713,100090.0,100080.0,1.003]
[1733668802702,2.32783713,100090.0,100080.0,1.00612301]
[1733668803204,2.32783713,100090.0,100080.0,1.003]
[1733668804297,0.82783713,100090.0,100080.0,1.003]
[1733668805306,1.00670157,100090.0,100080.0,1.003]
[1733668805497,0.82783713,100090.0,100080.0,1.003]
[1733668806509,0.99547636,100090.0,100080.0,1.00612299]
[1733668806703,0.99547636,100090.0,100080.0,1.03652299]
[1733668806902,1.14452681,100090.0,100080.0,1.0334]
[1733668807103,1.14452681,100090.0,100080.0,1.03652278]
[1733668807405,0.99547636,100090.0,100080.0,1.03652278]
[1733668807604,1.14451637,100090.0,100080.0,1.03652278]
[1733668808597,0.99547636,100090.0,100080.0,1.03652278]
[1733668809002,1.144496,100090.0,100080.0,1.03652278]
[1733668809298,0.99547636,100090.0,100080.0,1.03652278]
[1733668809810,0.99547636,100090.0,100080.0,1.0334]
[1733668810114,1.27617636,100090.0,100080.0,1.00612278]
[1733668810601,1.34167636,100090.0,100080.0,1.00612278]
[1733668810801,2.84165062,100090.0,100080.0,1.00612278]
[1733668812913,2.84165062,100090.0,100080.0,1.003]
[1733668813109,2.84165062,100090.0,100080.0,1.00612317]
[1733668813808,1.34165062,100090.0,100080.0,1.00612317]
[1733668814106,1.06095062,100090.0,100080.0,1.00612317]
[1733668814498,2.56095062,100090.0,100080.0,1.00612317]
[1733668815408,2.38212446,100090.0,100080.0,1.00612317]
[1733668815604,2.82882101,100090.0,100080.0,1.003]
[1733668817705,1.26332101,100090.0,100080.0,1.003]
[1733668817911,1.02531624,100090.0,100080.0,1.003]
[1733668818210,1.02531624,100090.0,100080.0,1.006123]
[1733668818414,1.02531624,100090.0,100080.0,1.003]
[1733668818618,1.02531624,100090.0,100080.0,1.00612303]
[1733668818819,1.02531624,100090.0,100080.0,1.003]
[1733668819206,0.9954481,100090.0,100080.0,1.00612305]
[1733668819913,1.02531624,100090.0,100080.0,1.00612305]
[1733668821604,1.02531624,100090.0,100080.0,1.00612297]
[1733668821810,0.81662446,100090.0,100080.0,1.00612297]
[1733668822606,0.99549084,100090.0,100080.0,1.00612297]
[1733668823116,0.99549084,100090.0,100080.0,1.18580307]
[1733668824220,0.99549084,100090.0,100080.0,1.00612297]
[1733668826012,1.27619084,100090.0,100080.0,1.00612297]
[1733668827521,1.27619084,100090.0,100080.0,1.003]
[1733668827720,1.27619084,100090.0,100080.0,1.00612302]
[1733668828018,1.30601624,100090.0,100080.0,1.00612302]
[1733668830614,1.54402101,100090.0,100080.0,1.00612302]
[1733668832013,1.26332101,100090.0,100080.0,1.00612302]
[1733668833513,1.26332101,100090.0,100080.0,1.003]
[1733668833714,1.26332101,100090.0,100080.0,1.00612297]
[1733668836629,1.26332101,100090.0,100080.0,1.00612305]
[1733668837823,1.02531624,100090.0,100080.0,1.00612305]
[1733668838218,1.36111624,100090.0,100080.0,1.00612305]
[1733668839612,1.36111624,100090.0,100080.0,1.003]
[1733668839818,1.36111624,100090.0,100080.0,1.00612299]
[1733668841931,1.36411624,100090.0,100080.0,1.00512299]
[1733668842821,1.36411624,100090.0,100080.0,1.03612292]
[1733668842822,1.15542446,100090.0,100080.0,1.03612292]
[1733668843021,1.16242446,100090.0,100080.0,1.03712292]
[1733668843823,1.16242446,100090.0,100080.0,1.22179956]
[1733668844024,1.32117422,100090.0,100080.0,1.22179956]
[1733668844224,1.32117422,100090.0,100080.0,1.2136801]
[1733668844822,1.33117422,100090.0,100080.0,1.2136801]
[1733668845425,1.33117422,100090.0,100080.0,1.21680282]
[1733668845625,1.33117422,100090.0,100080.0,1.04211907]
[1733668846226,1.33117422,100090.0,100080.0,1.04524182]
[1733668846432,1.15242446,100090.0,100080.0,1.0421191]
[1733668846820,1.33104329,100090.0,100080.0,1.0421191]
[1733668852732,1.33104329,100090.0,100080.0,1.2217992]
[1733668853336,1.33104329,100090.0,100080.0,1.22179922]
[1733668855235,1.33104329,100090.0,100080.0,1.04211912]
[1733668856128,0.60944329,100090.0,100080.0,1.04211912]
[1733668856324,1.33104329,100090.0,100080.0,1.04211912]
[1733668856528,0.60944329,100090.0,100080.0,1.04211912]
[1733668856729,1.33104329,100090.0,100080.0,1.04211912]
[1733668857528,0.60944329,100090.0,100080.0,1.04211912]
[1733668857728,1.33104329,100090.0,100080.0,1.04211912]
[1733668858129,1.33104329,100090.0,100080.0,1.01111912]
[1733668859837,1.36354329,100090.0,100080.0,1.01111912]
[1733668860032,1.36354329,100090.0,100080.0,1.01111935]
[1733668860541,1.36354329,100090.0,100080.0,1.00612274]
[1733668861034,1.36345624,100090.0,100080.0,1.00612274]
[1733668861432,1.36345892,100090.0,100080.0,1.00612274]
[1733668861632,1.18492446,100090.0,100080.0,1.00612274]
[1733668861833,1.29582101,100090.0,100080.0,1.00612274]
[1733668862638,1.29582101,100090.0,100080.0,1.00412274]
[1733668862839,1.29556661,100090.0,100080.0,1.00412274]
[1733668863241,1.08922694,100090.0,100080.0,1.00512274]
[1733668863738,1.09122694,100090.0,100080.0,1.00512274]
[1733668863932,1.2996463,100090.0,100080.0,1.00512274]
[1733668864441,1.09122694,100090.0,100080.0,1.00512274]
[1733668864744,1.29965227,100090.0,100080.0,1.00512274]
[1733668865135,1.09122694,100090.0,100080.0,1.00512274]
[1733668867737,1.35972516,100090.0,100080.0,1.00512274]
[1733668870438,0.63812516,100090.0,100080.0,1.00512274]
[1733668870638,1.35972516,100090.0,100080.0,1.00512274]
[1733668870839,1.35972516,100090.0,100080.0,1.0051229]
[1733668872541,1.35972516,100090.0,100080.0,1.01011954]
[1733668873336,1.35972516,100090.0,100080.0,1.01011952]
[1733668874047,1.35972516,100090.0,100080.0,1.0051229]
[1733668874048,1.12162268,100090.0,100080.0,1.0051229]
[1733668874250,1.35999113,100090.0,100080.0,1.00512291]
[1733668875855,1.09149291,100090.0,100080.0,1.00512291]
[1733668876058,1.35999113,100090.0,100080.0,1.00512291]
[1733668876651,1.35999113,100090.0,100080.0,1.01011956]
[1733668876652,1.26763437,100090.0,100080.0,1.01011956]
[1733668876845,1.23764704,100090.0,100080.0,1.08685356]
[1733668877046,1.23764704,100090.0,100080.0,1.33003501]
[1733668877047,0.56375907,100090.0,100080.0,1.33003501]
[1733668877344,0.24788907,100090.0,100080.0,1.33003501]
[1733668877645,0.60868907,100090.0,100080.0,1.33003501]
[1733668877856,0.56375907,100090.0,100080.0,1.33003501]
[1733668878045,0.53391638,100090.0,100080.0,1.63003501]
[1733668878252,0.57884638,100090.0,100080.0,1.88209934]
[1733668878850,0.16300925,100090.0,100080.0,2.24289934]
[1733668879165,0.58457794,100100.0,100090.0,0.04493]
[1733668879361,0.58457794,100100.0,100090.0,0.23273101]
[1733668879655,0.58457794,100100.0,100090.0,0.05304956]
[1733668879956,0.405726,100100.0,100090.0,0.63264608]
[1733668880154,0.405726,100100.0,100090.0,0.33264608]
[1733668880450,0.414726,100100.0,100090.0,0.33364608]
[1733668880656,0.414726,100100.0,100090.0,0.15396463]
[1733668881153,0.418726,100100.0,100090.0,0.15396463]
[1733668881354,0.418726,100100.0,100090.0,0.45396463]
[1733668881551,0.418726,100100.0,100090.0,0.63364608]
[1733668881747,0.3698,100100.0,100090.0,0.64608334]
[1733668882347,0.3618,100100.0,100090.0,0.64508334]
[1733668882852,0.3618,100100.0,100090.0,0.46540189]
[1733668883155,0.3618,100100.0,100090.0,0.16540189]
[1733668883156,0.406725,100100.0,100090.0,0.16540189]
[1733668883546,0.406725,100100.0,100090.0,0.17534509]
[1733668884353,0.406725,100100.0,100090.0,0.17532987]
[1733668884546,0.406725,100100.0,100090.0,0.47532987]
[1733668884744,0.406725,100100.0,100090.0,0.17532987]
[1733668884947,0.406725,100100.0,100090.0,0.47532987]
[1733668885157,0.406725,100100.0,100090.0,0.17532987]
[1733668886555,0.406725,100100.0,100090.0,0.47532987]
[1733668886758,0.49586543,100100.0,100090.0,0.47532987]
[1733668886956,0.49586543,100100.0,100090.0,0.17532987]
[1733668888554,0.49586543,100100.0,100090.0,0.47532987]
[1733668888757,0.49586543,100100.0,100090.0,0.17532987]
[1733668888958,0.45094043,100100.0,100090.0,0.47532987]
[1733668889158,0.09014043,100100.0,100090.0,0.83612987]
[1733668890164,0.00011179,100110.0,100100.0,0.044925]
[1733668890357,0.107913,100130.0,100120.0,0.044916]
[1733668890553,0.063,100130.0,100120.0,0.04803799]
[1733668890758,0.063,100130.0,100120.0,0.06543172]
[1733668890960,0.063,100130.0,100120.0,0.04803799]
[1733668891262,0.063,100130.0,100120.0,0.06862521]
[1733668891450,0.43732104,100140.0,100130.0,0.044912]
[1733668891651,0.43732104,100140.0,100130.0,0.04803296]
[1733668893060,0.43832104,100140.0,100130.0,0.05703296]
[1733668893860,0.43832104,100140.0,100130.0,0.06203296]
[1733668894357,0.43832104,100140.0,100130.0,0.058912]
[1733668894761,0.39341104,100140.0,100130.0,0.06203273]
[1733668894958,0.03261104,100140.0,100130.0,0.53507067]
[1733668895164,0.00111104,100140.0,100130.0,0.83507067]
[1733668896551,0.00011104,100140.0,100130.0,0.82607067]
[1733668896756,0.01411104,100140.0,100130.0,0.82207067]
[1733668897364,0.01411104,100140.0,100130.0,0.52207067]
[1733668897579,0.01411104,100140.0,100130.0,0.50657718]
[1733668897859,0.05901804,100140.0,100130.0,0.16125288]
[1733668899757,0.41981804,100140.0,100130.0,0.0613877]
[1733668900059,0.41981804,100140.0,100130.0,0.045912]
[1733668902756,0.41981804,100140.0,100130.0,0.04903292]
[1733668907364,0.41981804,100140.0,100130.0,0.05402634]
[1733668907965,0.05901804,100140.0,100130.0,0.05402634]
[1733668908164,0.41981804,100140.0,100130.0,0.05402634]
[1733668911765,0.37491104,100140.0,100130.0,0.05402634]
[1733668911964,0.37491104,100140.0,100130.0,0.15389152]
[1733668912165,0.37491104,100140.0,100130.0,0.16628229]
[1733668912674,0.01411104,100140.0,100130.0,0.16628229]
[1733668913269,0.05901804,100140.0,100130.0,0.16628229]
[1733668913469,0.05901804,100140.0,100130.0,0.15389152]
[1733668913871,0.05901804,100140.0,100130.0,0.16628407]
[1733668914274,0.05901804,100140.0,100130.0,0.16628695]
[1733668915178,0.05901804,100140.0,100130.0,0.14577718]
[1733668915376,0.05901804,100140.0,100130.0,0.16628851]
[1733668915580,0.05901804,100140.0,100130.0,0.34596996]
[1733668915775,0.05901804,100140.0,100130.0,0.16628851]
[1733668916569,0.05901804,100140.0,100130.0,0.15389082]
[1733668916777,0.41981804,100140.0,100130.0,0.15389082]
[1733668916975,0.41981804,100140.0,100130.0,0.33357227]
[1733668917181,0.41981804,100140.0,100130.0,0.23370709]
[1733668917479,0.41981804,100140.0,100130.0,0.05402564]
[1733668918679,0.56823754,100140.0,100130.0,0.23370709]
[1733668919575,0.56823754,100140.0,100130.0,0.47328236]
[1733668920583,0.74708948,100140.0,100130.0,0.47328236]
[1733668920785,0.59866998,100140.0,100130.0,0.23370709]
[1733668922571,0.59866998,100140.0,100120.0,0.59407618]